[Event "Titled Tuesday Blitz November 15 Early 2022"]
[White "Raahul V S"]
[Black "Wagner, Dennis"]
[WhiteFideId "25035525"]
[BlackFideId "24650684"]
[WhiteElo "2233"]
[BlackElo "2470"]
[Result "0-1"]
[Round "10"]
[TimeControl "180+1"]
[Date "2022.11.16"]
[WhiteClock "0:00:07"]
[BlackClock "0:00:12"]

1. c4 {[%clk 0:02:53]}  c6 {[%clk 0:02:55]} 2. e4 {[%clk 0:02:50]}  d5 {[%clk 0:02:53]} 3. exd5 {[%clk 0:02:51]}  cxd5 {[%clk 0:02:54]} 4. cxd5 {[%clk 0:02:52]}  Nf6 {[%clk 0:02:54]} 5. Qa4+ {[%clk 0:02:52]}  Nbd7 {[%clk 0:02:53]} 6. Nc3 {[%clk 0:02:52]}  g6 {[%clk 0:02:52]} 7. Bc4 {[%clk 0:02:53]}  Bg7 {[%clk 0:02:52]} 8. Nf3 {[%clk 0:02:52]}  O-O {[%clk 0:02:53]} 9. d3 {[%clk 0:02:53]}  a6 {[%clk 0:02:52]} 10. Qa3 {[%clk 0:02:53]}  Nb6 {[%clk 0:02:46]} 11. Qb3 {[%clk 0:02:53]}  Bd7 {[%clk 0:02:33]} 12. Be3 {[%clk 0:02:50]}  Nc8 {[%clk 0:02:32]} 13. Qxb7 {[%clk 0:02:41]}  Nd6 {[%clk 0:02:33]} 14. Qb3 {[%clk 0:02:41]}  Rb8 {[%clk 0:02:25]} 15. Qc2 {[%clk 0:02:41]}  Bf5 {[%clk 0:01:59]} 16. Qd2 {[%clk 0:02:37]}  Nfe4 {[%clk 0:01:20]} 17. dxe4 {[%clk 0:01:54]}  Nxc4 {[%clk 0:01:19]} 18. Qc1 {[%clk 0:01:55]}  Bxe4 {[%clk 0:00:38]} 19. Nxe4 {[%clk 0:01:44]}  Qxd5 {[%clk 0:00:38]} 20. Nc3 {[%clk 0:01:40]}  Qd3 {[%clk 0:00:38]} 21. Qd1 {[%clk 0:01:35]}  Bxc3+ {[%clk 0:00:31]} 22. bxc3 {[%clk 0:01:34]}  Qxc3+ {[%clk 0:00:32]} 23. Kf1 {[%clk 0:01:24]}  Nxe3+ {[%clk 0:00:28]} 24. fxe3 {[%clk 0:01:23]}  Rb2 {[%clk 0:00:23]} 25. Qe1 {[%clk 0:00:50]}  Qc2 {[%clk 0:00:16]} 26. Qg3 {[%clk 0:00:07]}  Qe2+ {[%clk 0:00:15]} 27. Kg1 {[%clk 0:00:07]}  Qxe3+ {[%clk 0:00:15]} 28. Kf1 {[%clk 0:00:07]}  Rc8 {[%clk 0:00:12]} 29. Qe1 {[%clk 0:00:07]}  Qd3+ {[%clk 0:00:10]} 30. Kg1 {[%clk 0:00:07]}  Rcc2 {[%clk 0:00:11]} 31. Nh4 {[%clk 0:00:06]}  Qd4+ {[%clk 0:00:11]} 32. Kf1 {[%clk 0:00:07]}  Rf2+ {[%clk 0:00:12]} 0-1


[Site "https://www.chess.com"]

[Event "Titled Tuesday Blitz November 15 Early 2022"]
[White "Rose, Felix"]
[Black "Melikhov, Evgeny V."]
[WhiteFideId "5105722"]
[BlackFideId "4122046"]
[WhiteElo "2039"]
[BlackElo "2169"]
[Result "0-1"]
[Round "10"]
[TimeControl "180+1"]
[Date "2022.11.16"]
[WhiteClock "0:02:50"]
[BlackClock "0:02:42"]

1. e4 {[%clk 0:03:00]}  c5 {[%clk 0:02:57]} 2. Nf3 {[%clk 0:03:00]}  d6 {[%clk 0:02:57]} 3. d4 {[%clk 0:03:00]}  cxd4 {[%clk 0:02:57]} 4. Nxd4 {[%clk 0:03:01]}  Nf6 {[%clk 0:02:57]} 5. Nc3 {[%clk 0:03:01]}  a6 {[%clk 0:02:58]} 6. f3 {[%clk 0:03:01]}  e5 {[%clk 0:02:58]} 7. Nb3 {[%clk 0:03:02]}  Be6 {[%clk 0:02:58]} 8. Be3 {[%clk 0:03:03]}  Be7 {[%clk 0:02:58]} 9. Qd2 {[%clk 0:03:03]}  O-O {[%clk 0:02:58]} 10. O-O-O {[%clk 0:03:04]}  Qc7 {[%clk 0:02:58]} 11. g4 {[%clk 0:03:04]}  b5 {[%clk 0:02:57]} 12. g5 {[%clk 0:03:03]}  Nh5 {[%clk 0:02:57]} 13. Kb1 {[%clk 0:03:04]}  Nd7 {[%clk 0:02:52]} 14. Nd5 {[%clk 0:02:58]}  Bxd5 {[%clk 0:02:49]} 15. Qxd5 {[%clk 0:02:57]}  Nb6 {[%clk 0:02:44]} 16. Bxb6 {[%clk 0:02:54]}  Qxb6 {[%clk 0:02:44]} 17. Bh3 {[%clk 0:02:50]}  Nf4 {[%clk 0:02:42]} 0-1


[Site "https://www.chess.com"]

[Event "Titled Tuesday Blitz November 15 Early 2022"]
[White "Safin, Robert"]
[Black "Gjestemoen-VonHirsch, Andre"]
[WhiteFideId "34189120"]
[BlackFideId "1539531"]
[WhiteElo "2253"]
[BlackElo "2198"]
[Result "0-1"]
[Round "10"]
[TimeControl "180+1"]
[Date "2022.11.16"]
[WhiteClock "0:00:04"]
[BlackClock "0:00:04"]

1. e4 {[%clk 0:03:00]}  g6 {[%clk 0:02:59]} 2. d4 {[%clk 0:02:59]}  Bg7 {[%clk 0:02:58]} 3. Nc3 {[%clk 0:02:58]}  c5 {[%clk 0:02:58]} 4. Nf3 {[%clk 0:02:46]}  cxd4 {[%clk 0:02:58]} 5. Nxd4 {[%clk 0:02:46]}  Nc6 {[%clk 0:02:59]} 6. Be3 {[%clk 0:02:45]}  Nf6 {[%clk 0:02:59]} 7. Be2 {[%clk 0:02:42]}  O-O {[%clk 0:02:58]} 8. O-O {[%clk 0:02:42]}  d5 {[%clk 0:02:53]} 9. exd5 {[%clk 0:02:20]}  Nxd5 {[%clk 0:02:52]} 10. Nxd5 {[%clk 0:02:20]}  Qxd5 {[%clk 0:02:53]} 11. Bf3 {[%clk 0:02:21]}  Qd7 {[%clk 0:02:07]} 12. Nxc6 {[%clk 0:02:16]}  bxc6 {[%clk 0:02:08]} 13. Qxd7 {[%clk 0:02:12]}  Bxd7 {[%clk 0:02:09]} 14. Rad1 {[%clk 0:02:12]}  Rfd8 {[%clk 0:02:04]} 15. b3 {[%clk 0:02:10]}  a5 {[%clk 0:01:52]} 16. Bb6 {[%clk 0:01:49]}  Rdb8 {[%clk 0:01:44]} 17. Bc7 {[%clk 0:01:47]}  Bf5 {[%clk 0:01:39]} 18. Bxb8 {[%clk 0:01:41]}  Rxb8 {[%clk 0:01:39]} 19. Bxc6 {[%clk 0:01:30]}  Bxc2 {[%clk 0:01:38]} 20. Rc1 {[%clk 0:01:30]}  Bf5 {[%clk 0:01:30]} 21. Rfe1 {[%clk 0:01:28]}  Be6 {[%clk 0:01:29]} 22. Ba4 {[%clk 0:01:13]}  Bb2 {[%clk 0:01:24]} 23. Rc7 {[%clk 0:01:04]}  Ba3 {[%clk 0:01:21]} 24. Rd1 {[%clk 0:00:42]}  Bd6 {[%clk 0:01:11]} 25. Rc6 {[%clk 0:00:38]}  Rb7 {[%clk 0:00:18]} 26. g3 {[%clk 0:00:36]}  Bd7 {[%clk 0:00:18]} 27. Rc4 {[%clk 0:00:31]}  Be6 {[%clk 0:00:17]} 28. Rc2 {[%clk 0:00:28]}  Rb4 {[%clk 0:00:16]} 29. Bc6 {[%clk 0:00:23]}  Rb6 {[%clk 0:00:13]} 30. Bd5 {[%clk 0:00:16]}  Bf5 {[%clk 0:00:12]} 31. Rc4 {[%clk 0:00:16]}  Kg7 {[%clk 0:00:10]} 32. Kg2 {[%clk 0:00:16]}  h5 {[%clk 0:00:09]} 33. Rd2 {[%clk 0:00:15]}  Bb4 {[%clk 0:00:08]} 34. Rd1 {[%clk 0:00:11]}  Bg4 {[%clk 0:00:06]} 35. Bf3 {[%clk 0:00:11]}  Be6 {[%clk 0:00:07]} 36. Rc6 {[%clk 0:00:10]}  Rb8 {[%clk 0:00:04]} 37. Rd3 {[%clk 0:00:05]}  Bf5 {[%clk 0:00:04]} 38. Rd4 {[%clk 0:00:04]}  Bd6 {[%clk 0:00:03]} 39. Rcxd6 {[%clk 0:00:02]}  exd6 {[%clk 0:00:04]} 40. Rxd6 {[%clk 0:00:01]}  a4 {[%clk 0:00:05]} 41. Ra6 {[%clk 0:00:01]}  axb3 {[%clk 0:00:05]} 42. axb3 {[%clk 0:00:02]}  Rxb3 {[%clk 0:00:04]} 43. Ra7 {[%clk 0:00:03]}  Be6 {[%clk 0:00:05]} 44. Rc7 {[%clk 0:00:02]}  Kf6 {[%clk 0:00:05]} 45. Ra7 {[%clk 0:00:02]}  h4 {[%clk 0:00:05]} 46. gxh4 {[%clk 0:00:02]}  Bh3+ {[%clk 0:00:04]} 47. Kxh3 {[%clk 0:00:02]}  Rxf3+ {[%clk 0:00:05]} 48. Kg2 {[%clk 0:00:02]}  Rf4 {[%clk 0:00:05]} 49. Kg3 {[%clk 0:00:02]}  Rb4 {[%clk 0:00:05]} 50. Ra3 {[%clk 0:00:02]}  Kg7 {[%clk 0:00:04]} 51. Rf3 {[%clk 0:00:03]}  f5 {[%clk 0:00:04]} 52. Re3 {[%clk 0:00:04]}  f4+ {[%clk 0:00:04]} 0-1


[Site "https://www.chess.com"]

[Event "Titled Tuesday Blitz November 15 Early 2022"]
[White "Salinas Herrera, Pablo"]
[Black "Rohith Krishna S"]
[WhiteFideId "3407128"]
[BlackFideId "46617051"]
[WhiteElo "2557"]
[BlackElo "2270"]
[Result "1-0"]
[Round "10"]
[TimeControl "180+1"]
[Date "2022.11.15"]
[WhiteClock "0:00:04"]
[BlackClock "0:00:42"]

1. d4 {[%clk 0:03:00]}  Nf6 {[%clk 0:02:54]} 2. Nf3 {[%clk 0:02:59]}  c5 {[%clk 0:02:54]} 3. d5 {[%clk 0:02:58]}  e6 {[%clk 0:02:54]} 4. Nc3 {[%clk 0:02:58]}  exd5 {[%clk 0:02:51]} 5. Nxd5 {[%clk 0:02:58]}  Nxd5 {[%clk 0:02:44]} 6. Qxd5 {[%clk 0:02:58]}  d6 {[%clk 0:02:44]} 7. Bf4 {[%clk 0:02:54]}  Qa5+ {[%clk 0:02:40]} 8. Bd2 {[%clk 0:02:52]}  Qb6 {[%clk 0:02:38]} 9. O-O-O {[%clk 0:02:45]}  Be6 {[%clk 0:02:38]} 10. Qg5 {[%clk 0:02:45]}  Bxa2 {[%clk 0:02:27]} 11. e4 {[%clk 0:02:42]}  Nc6 {[%clk 0:02:22]} 12. Bc3 {[%clk 0:02:41]}  h6 {[%clk 0:02:21]} 13. Qg3 {[%clk 0:02:40]}  Be6 {[%clk 0:02:19]} 14. Be2 {[%clk 0:02:39]}  Nb4 {[%clk 0:02:18]} 15. Bxb4 {[%clk 0:02:14]}  Qxb4 {[%clk 0:02:19]} 16. Rhe1 {[%clk 0:02:15]}  a5 {[%clk 0:02:12]} 17. Nd2 {[%clk 0:01:46]}  a4 {[%clk 0:02:11]} 18. Nb1 {[%clk 0:01:46]}  Be7 {[%clk 0:02:06]} 19. f4 {[%clk 0:01:31]}  O-O {[%clk 0:02:02]} 20. Na3 {[%clk 0:01:26]}  Bf6 {[%clk 0:01:58]} 21. c3 {[%clk 0:01:25]}  Qb6 {[%clk 0:01:56]} 22. Bc4 {[%clk 0:01:23]}  Rfd8 {[%clk 0:01:51]} 23. Bd5 {[%clk 0:01:23]}  Qa5 {[%clk 0:01:44]} 24. Nc4 {[%clk 0:01:21]}  Qa6 {[%clk 0:01:43]} 25. Na3 {[%clk 0:00:53]}  Bxd5 {[%clk 0:01:33]} 26. Rxd5 {[%clk 0:00:53]}  b5 {[%clk 0:01:34]} 27. Qd3 {[%clk 0:00:17]}  b4 {[%clk 0:01:34]} 28. Qxa6 {[%clk 0:00:16]}  Rxa6 {[%clk 0:01:35]} 29. Nb5 {[%clk 0:00:12]}  Rb6 {[%clk 0:01:29]} 30. c4 {[%clk 0:00:12]}  Ra8 {[%clk 0:01:24]} 31. Kb1 {[%clk 0:00:10]}  a3 {[%clk 0:01:23]} 32. bxa3 {[%clk 0:00:11]}  bxa3 {[%clk 0:01:24]} 33. Ka2 {[%clk 0:00:11]}  Ra4 {[%clk 0:01:24]} 34. Rc1 {[%clk 0:00:11]}  Rb4 {[%clk 0:01:22]} 35. Rc2 {[%clk 0:00:10]}  Ra6 {[%clk 0:01:14]} 36. Rxd6 {[%clk 0:00:07]}  Rb2+ {[%clk 0:01:14]} 37. Rxb2 {[%clk 0:00:08]}  Rxd6 {[%clk 0:01:12]} 38. Nxd6 {[%clk 0:00:07]}  Bxb2 {[%clk 0:01:12]} 39. Nb7 {[%clk 0:00:04]}  Bc1 {[%clk 0:01:11]} 40. g3 {[%clk 0:00:05]}  Be3 {[%clk 0:01:11]} 41. Kxa3 {[%clk 0:00:05]}  Bg1 {[%clk 0:01:12]} 42. h3 {[%clk 0:00:05]}  Bh2 {[%clk 0:01:12]} 43. f5 {[%clk 0:00:06]}  Bxg3 {[%clk 0:01:12]} 44. Ka4 {[%clk 0:00:05]}  g5 {[%clk 0:01:09]} 45. fxg6 {[%clk 0:00:04]}  fxg6 {[%clk 0:01:09]} 46. Nxc5 {[%clk 0:00:05]}  g5 {[%clk 0:01:07]} 47. Kb5 {[%clk 0:00:04]}  h5 {[%clk 0:01:07]} 48. Ne6 {[%clk 0:00:04]}  g4 {[%clk 0:01:08]} 49. hxg4 {[%clk 0:00:05]}  hxg4 {[%clk 0:01:07]} 50. Nd4 {[%clk 0:00:05]}  Bf2 {[%clk 0:01:06]} 51. Ne2 {[%clk 0:00:04]}  g3 {[%clk 0:01:06]} 52. c5 {[%clk 0:00:04]}  Kf7 {[%clk 0:00:57]} 53. c6 {[%clk 0:00:04]}  Ke7 {[%clk 0:00:58]} 54. e5 {[%clk 0:00:03]}  g2 {[%clk 0:00:56]} 55. Ka6 {[%clk 0:00:03]}  Bg3 {[%clk 0:00:38]} 56. c7 {[%clk 0:00:02]}  Bxe5 {[%clk 0:00:38]} 57. c8=Q {[%clk 0:00:02]}  Bd6 {[%clk 0:00:39]} 58. Qb7+ {[%clk 0:00:02]}  Kf6 {[%clk 0:00:40]} 59. Qxg2 {[%clk 0:00:03]}  Ke5 {[%clk 0:00:40]} 60. Kb5 {[%clk 0:00:04]}  Ke6 {[%clk 0:00:40]} 61. Kc4 {[%clk 0:00:04]}  Be5 {[%clk 0:00:41]} 62. Qe4 {[%clk 0:00:04]}  Kf6 {[%clk 0:00:41]} 63. Nd4 {[%clk 0:00:04]}  Bxd4 {[%clk 0:00:41]} 64. Kxd4 {[%clk 0:00:04]}  Kg5 {[%clk 0:00:42]} 1-0


[Site "https://www.chess.com"]

[Event "Titled Tuesday Blitz November 15 Early 2022"]
[White "Sarana, Alexey"]
[Black "Shipov, Sergei"]
[WhiteFideId "24133795"]
[BlackFideId "4113624"]
[WhiteElo "2708"]
[BlackElo "2792"]
[Result "1-0"]
[Round "10"]
[TimeControl "180+1"]
[Date "2022.11.15"]
[WhiteClock "0:00:17"]
[BlackClock "0:00:46"]

1. c4 {[%clk 0:02:37]}  Nf6 {[%clk 0:02:44]} 2. Nc3 {[%clk 0:02:37]}  c5 {[%clk 0:02:44]} 3. Nf3 {[%clk 0:02:37]}  e6 {[%clk 0:02:43]} 4. g3 {[%clk 0:02:32]}  b6 {[%clk 0:02:43]} 5. Bg2 {[%clk 0:02:32]}  Bb7 {[%clk 0:02:44]} 6. O-O {[%clk 0:02:32]}  Be7 {[%clk 0:02:44]} 7. d4 {[%clk 0:02:32]}  cxd4 {[%clk 0:02:44]} 8. Qxd4 {[%clk 0:02:33]}  d6 {[%clk 0:02:45]} 9. Rd1 {[%clk 0:02:32]}  a6 {[%clk 0:02:44]} 10. Bg5 {[%clk 0:02:32]}  Nbd7 {[%clk 0:02:40]} 11. e4 {[%clk 0:02:15]}  O-O {[%clk 0:02:37]} 12. e5 {[%clk 0:02:12]}  dxe5 {[%clk 0:02:06]} 13. Nxe5 {[%clk 0:02:11]}  Bxg2 {[%clk 0:02:05]} 14. Nxd7 {[%clk 0:01:59]}  Bf3 {[%clk 0:02:00]} 15. Bxf6 {[%clk 0:01:38]}  Bxf6 {[%clk 0:01:55]} 16. Nxf6+ {[%clk 0:01:23]}  Qxf6 {[%clk 0:01:55]} 17. Qxf6 {[%clk 0:01:23]}  gxf6 {[%clk 0:01:55]} 18. Rd3 {[%clk 0:01:24]}  Bc6 {[%clk 0:01:52]} 19. Rd6 {[%clk 0:01:21]}  Rfc8 {[%clk 0:01:52]} 20. Rad1 {[%clk 0:01:22]}  Kf8 {[%clk 0:01:51]} 21. f4 {[%clk 0:01:19]}  Ke7 {[%clk 0:01:51]} 22. Kf2 {[%clk 0:01:16]}  Rc7 {[%clk 0:01:49]} 23. R1d2 {[%clk 0:01:12]}  Rac8 {[%clk 0:01:45]} 24. Ke3 {[%clk 0:01:06]}  Be8 {[%clk 0:01:45]} 25. Rxb6 {[%clk 0:01:05]}  Rxc4 {[%clk 0:01:45]} 26. Rxa6 {[%clk 0:01:04]}  h5 {[%clk 0:01:42]} 27. Rb6 {[%clk 0:01:03]}  f5 {[%clk 0:01:40]} 28. Rb7+ {[%clk 0:01:02]}  Kf6 {[%clk 0:01:40]} 29. Rd4 {[%clk 0:00:59]}  R4c5 {[%clk 0:01:36]} 30. Rb6 {[%clk 0:00:55]}  Bc6 {[%clk 0:01:30]} 31. Kd2 {[%clk 0:00:51]}  Bf3 {[%clk 0:01:26]} 32. a4 {[%clk 0:00:47]}  h4 {[%clk 0:01:25]} 33. Ke3 {[%clk 0:00:37]}  Bg2 {[%clk 0:01:20]} 34. Rd2 {[%clk 0:00:31]}  Ba8 {[%clk 0:01:19]} 35. Rd7 {[%clk 0:00:28]}  hxg3 {[%clk 0:01:12]} 36. hxg3 {[%clk 0:00:29]}  Rg8 {[%clk 0:01:11]} 37. Kf2 {[%clk 0:00:29]}  Rc4 {[%clk 0:01:09]} 38. a5 {[%clk 0:00:26]}  Rh8 {[%clk 0:01:04]} 39. a6 {[%clk 0:00:22]}  Rh2+ {[%clk 0:01:04]} 40. Ke3 {[%clk 0:00:21]}  Rg2 {[%clk 0:01:03]} 41. Kd3 {[%clk 0:00:21]}  Rc8 {[%clk 0:00:58]} 42. a7 {[%clk 0:00:19]}  Rxg3+ {[%clk 0:00:57]} 43. Kc2 {[%clk 0:00:19]}  Rgg8 {[%clk 0:00:52]} 44. Kb3 {[%clk 0:00:17]}  Bf3 {[%clk 0:00:52]} 45. Nb5 {[%clk 0:00:17]}  Rg3 {[%clk 0:00:49]} 46. Kb4 {[%clk 0:00:16]}  Bd5 {[%clk 0:00:49]} 47. Rxd5 {[%clk 0:00:16]}  Rf3 {[%clk 0:00:46]} 48. Rd4 {[%clk 0:00:16]}  Ra8 {[%clk 0:00:46]} 49. b3 {[%clk 0:00:16]}  Rf1 {[%clk 0:00:46]} 50. Rb8 {[%clk 0:00:17]} 1-0


[Site "https://www.chess.com"]

[Event "Titled Tuesday Blitz November 15 Early 2022"]
[White "Sargsyan, Anna M."]
[Black "Samunenkov, Ihor"]
[WhiteFideId "13308130"]
[BlackFideId "14187086"]
[WhiteElo "2284"]
[BlackElo "2441"]
[Result "0-1"]
[Round "10"]
[TimeControl "180+1"]
[Date "2022.11.15"]
[WhiteClock "0:00:01"]
[BlackClock "0:00:05"]

1. e4 {[%clk 0:02:59]}  c6 {[%clk 0:02:58]} 2. d4 {[%clk 0:02:59]}  d5 {[%clk 0:02:59]} 3. exd5 {[%clk 0:03:00]}  cxd5 {[%clk 0:02:59]} 4. Bd3 {[%clk 0:03:00]}  Nc6 {[%clk 0:03:00]} 5. c3 {[%clk 0:03:01]}  Nf6 {[%clk 0:03:00]} 6. h3 {[%clk 0:02:58]}  e5 {[%clk 0:03:00]} 7. dxe5 {[%clk 0:02:56]}  Nxe5 {[%clk 0:03:01]} 8. Bc2 {[%clk 0:02:48]}  Bc5 {[%clk 0:02:51]} 9. Ne2 {[%clk 0:02:45]}  O-O {[%clk 0:02:41]} 10. O-O {[%clk 0:02:45]}  Ne4 {[%clk 0:02:27]} 11. Nd2 {[%clk 0:02:40]}  Nxd2 {[%clk 0:01:44]} 12. Bxd2 {[%clk 0:02:41]}  Nc4 {[%clk 0:01:24]} 13. Bc1 {[%clk 0:02:38]}  Be6 {[%clk 0:01:16]} 14. Qd3 {[%clk 0:02:37]}  g6 {[%clk 0:01:16]} 15. b3 {[%clk 0:02:36]}  Ne5 {[%clk 0:01:09]} 16. Qg3 {[%clk 0:02:35]}  Nc6 {[%clk 0:01:04]} 17. Bh6 {[%clk 0:02:33]}  Re8 {[%clk 0:01:04]} 18. Rfe1 {[%clk 0:02:27]}  Qf6 {[%clk 0:01:04]} 19. Rad1 {[%clk 0:02:18]}  d4 {[%clk 0:00:59]} 20. Bg5 {[%clk 0:01:51]}  Qg7 {[%clk 0:00:56]} 21. Qf4 {[%clk 0:01:42]}  dxc3 {[%clk 0:00:40]} 22. Bf6 {[%clk 0:01:42]}  Qf8 {[%clk 0:00:40]} 23. Nxc3 {[%clk 0:01:43]}  Be7 {[%clk 0:00:32]} 24. Ne4 {[%clk 0:01:40]}  Bf5 {[%clk 0:00:32]} 25. Ba1 {[%clk 0:01:08]}  Bxe4 {[%clk 0:00:23]} 26. Bxe4 {[%clk 0:01:09]}  Rad8 {[%clk 0:00:21]} 27. Rxd8 {[%clk 0:00:59]}  Bxd8 {[%clk 0:00:21]} 28. Rd1 {[%clk 0:00:50]}  Qe7 {[%clk 0:00:19]} 29. Bf3 {[%clk 0:00:24]}  Bc7 {[%clk 0:00:18]} 30. Qc4 {[%clk 0:00:16]}  Ne5 {[%clk 0:00:12]} 31. Bxe5 {[%clk 0:00:13]}  Qxe5 {[%clk 0:00:13]} 32. g3 {[%clk 0:00:10]}  b5 {[%clk 0:00:09]} 33. Qc6 {[%clk 0:00:08]}  Re6 {[%clk 0:00:09]} 34. Qa8+ {[%clk 0:00:07]}  Kg7 {[%clk 0:00:09]} 35. Kg2 {[%clk 0:00:08]}  Bb6 {[%clk 0:00:09]} 36. Rd2 {[%clk 0:00:08]}  Qe1 {[%clk 0:00:07]} 37. Qd5 {[%clk 0:00:06]}  Rf6 {[%clk 0:00:05]} 38. Re2 {[%clk 0:00:04]}  Qa1 {[%clk 0:00:03]} 39. g4 {[%clk 0:00:04]}  h6 {[%clk 0:00:03]} 40. h4 {[%clk 0:00:04]}  Qc1 {[%clk 0:00:04]} 41. Qe5 {[%clk 0:00:04]}  g5 {[%clk 0:00:03]} 42. hxg5 {[%clk 0:00:04]}  hxg5 {[%clk 0:00:03]} 43. Qb2 {[%clk 0:00:03]}  Qf4 {[%clk 0:00:03]} 44. Qe5 {[%clk 0:00:02]}  Qxf3+ {[%clk 0:00:04]} 45. Kg1 {[%clk 0:00:02]}  Bxf2+ {[%clk 0:00:04]} 46. Kh2 {[%clk 0:00:01]}  Bg3+ {[%clk 0:00:05]} 47. Kh3 {[%clk 0:00:01]}  Bxe5# {[%clk 0:00:05]} 0-1


[Site "https://www.chess.com"]

[Event "Titled Tuesday Blitz November 15 Early 2022"]
[White "Shuvalova, Polina"]
[Black "Kobo, Ori"]
[WhiteFideId "24171760"]
[BlackFideId "2812320"]
[WhiteElo "2342"]
[BlackElo "2447"]
[Result "1-0"]
[Round "10"]
[TimeControl "180+1"]
[Date "2022.11.15"]
[WhiteClock "0:00:05"]
[BlackClock "0:00:03"]

1. d4 {[%clk 0:02:59]}  Nf6 {[%clk 0:03:00]} 2. Nf3 {[%clk 0:02:59]}  c5 {[%clk 0:02:59]} 3. d5 {[%clk 0:02:59]}  b5 {[%clk 0:02:59]} 4. e4 {[%clk 0:02:59]}  Nxe4 {[%clk 0:02:49]} 5. Bd3 {[%clk 0:02:59]}  Nf6 {[%clk 0:02:47]} 6. Bxb5 {[%clk 0:02:50]}  Ba6 {[%clk 0:02:39]} 7. Bxa6 {[%clk 0:02:43]}  Qa5+ {[%clk 0:02:38]} 8. Nbd2 {[%clk 0:02:36]}  Qxa6 {[%clk 0:02:39]} 9. c4 {[%clk 0:02:36]}  e6 {[%clk 0:02:30]} 10. O-O {[%clk 0:02:34]}  Be7 {[%clk 0:02:30]} 11. Re1 {[%clk 0:02:30]}  O-O {[%clk 0:02:27]} 12. b3 {[%clk 0:02:30]}  Qc8 {[%clk 0:02:12]} 13. Bb2 {[%clk 0:02:28]}  d6 {[%clk 0:02:09]} 14. dxe6 {[%clk 0:02:26]}  fxe6 {[%clk 0:02:10]} 15. Ng5 {[%clk 0:02:22]}  e5 {[%clk 0:02:08]} 16. Nde4 {[%clk 0:02:21]}  Qc6 {[%clk 0:01:09]} 17. Qd3 {[%clk 0:02:18]}  Nxe4 {[%clk 0:01:07]} 18. Nxe4 {[%clk 0:02:17]}  Na6 {[%clk 0:01:00]} 19. Rad1 {[%clk 0:02:14]}  Rad8 {[%clk 0:01:00]} 20. Qh3 {[%clk 0:02:06]}  Nc7 {[%clk 0:00:58]} 21. Bc1 {[%clk 0:02:00]}  Qe8 {[%clk 0:00:45]} 22. Rd3 {[%clk 0:01:45]}  Qf7 {[%clk 0:00:27]} 23. Rf3 {[%clk 0:01:40]}  Qe6 {[%clk 0:00:26]} 24. Rxf8+ {[%clk 0:01:28]}  Rxf8 {[%clk 0:00:25]} 25. Qd3 {[%clk 0:01:28]}  Qf5 {[%clk 0:00:18]} 26. Re3 {[%clk 0:01:17]}  Ne6 {[%clk 0:00:18]} 27. Rf3 {[%clk 0:01:15]}  Qg6 {[%clk 0:00:15]} 28. Rxf8+ {[%clk 0:01:14]}  Bxf8 {[%clk 0:00:16]} 29. Qd5 {[%clk 0:01:12]}  Kh8 {[%clk 0:00:10]} 30. f3 {[%clk 0:01:01]}  Nd4 {[%clk 0:00:09]} 31. Kf2 {[%clk 0:01:00]}  h6 {[%clk 0:00:09]} 32. Be3 {[%clk 0:01:00]}  Kh7 {[%clk 0:00:08]} 33. Qa8 {[%clk 0:00:58]}  Qf7 {[%clk 0:00:06]} 34. Bxd4 {[%clk 0:00:51]}  cxd4 {[%clk 0:00:07]} 35. Qc8 {[%clk 0:00:44]}  Be7 {[%clk 0:00:06]} 36. Ke2 {[%clk 0:00:39]}  Qg6 {[%clk 0:00:05]} 37. Qg4 {[%clk 0:00:39]}  Qf7 {[%clk 0:00:02]} 38. Qd7 {[%clk 0:00:38]}  Kg8 {[%clk 0:00:03]} 39. Nxd6 {[%clk 0:00:35]}  Bxd6 {[%clk 0:00:04]} 40. Qxd6 {[%clk 0:00:34]}  Qf4 {[%clk 0:00:04]} 41. Qd5+ {[%clk 0:00:33]}  Kh8 {[%clk 0:00:04]} 42. Qa8+ {[%clk 0:00:33]}  Kh7 {[%clk 0:00:04]} 43. Qe4+ {[%clk 0:00:31]}  Qxe4+ {[%clk 0:00:04]} 44. fxe4 {[%clk 0:00:32]}  Kg6 {[%clk 0:00:05]} 45. b4 {[%clk 0:00:27]}  Kf6 {[%clk 0:00:04]} 46. c5 {[%clk 0:00:27]}  Ke6 {[%clk 0:00:04]} 47. b5 {[%clk 0:00:27]}  Kd7 {[%clk 0:00:04]} 48. Kd3 {[%clk 0:00:26]}  Kc7 {[%clk 0:00:04]} 49. Kc4 {[%clk 0:00:27]}  Kb7 {[%clk 0:00:04]} 50. a4 {[%clk 0:00:27]}  Kc7 {[%clk 0:00:04]} 51. a5 {[%clk 0:00:27]}  Kc8 {[%clk 0:00:04]} 52. b6 {[%clk 0:00:21]}  a6 {[%clk 0:00:04]} 53. c6 {[%clk 0:00:21]}  g6 {[%clk 0:00:03]} 54. Kd3 {[%clk 0:00:14]}  g5 {[%clk 0:00:03]} 55. Kc4 {[%clk 0:00:14]}  h5 {[%clk 0:00:03]} 56. h3 {[%clk 0:00:14]}  h4 {[%clk 0:00:03]} 57. Kd3 {[%clk 0:00:12]}  Kb8 {[%clk 0:00:04]} 58. Kc2 {[%clk 0:00:12]}  Kc8 {[%clk 0:00:04]} 59. Kd2 {[%clk 0:00:12]}  Kb8 {[%clk 0:00:05]} 60. Kd3 {[%clk 0:00:13]}  Kc8 {[%clk 0:00:05]} 61. Kc4 {[%clk 0:00:13]}  Kb8 {[%clk 0:00:06]} 62. Kb4 {[%clk 0:00:05]}  Kc8 {[%clk 0:00:06]} 63. Ka3 {[%clk 0:00:05]}  Kb8 {[%clk 0:00:06]} 64. Ka4 {[%clk 0:00:06]}  Kc8 {[%clk 0:00:06]} 65. Kb3 {[%clk 0:00:06]}  Kb8 {[%clk 0:00:07]} 66. Ka3 {[%clk 0:00:06]}  Kc8 {[%clk 0:00:07]} 67. Kb4 {[%clk 0:00:06]}  Kb8 {[%clk 0:00:07]} 68. c7+ {[%clk 0:00:06]}  Kb7 {[%clk 0:00:07]} 69. Kc4 {[%clk 0:00:05]}  Kc8 {[%clk 0:00:07]} 70. Kc5 {[%clk 0:00:04]}  Kb7 {[%clk 0:00:07]} 71. Kd6 {[%clk 0:00:04]}  d3 {[%clk 0:00:04]} 72. Kd7 {[%clk 0:00:04]}  d2 {[%clk 0:00:03]} 73. c8=Q# {[%clk 0:00:05]} 1-0


[Site "https://www.chess.com"]

[Event "Titled Tuesday Blitz November 15 Early 2022"]
[White "Stijve, Theo"]
[Black "Aumann, Welf"]
[WhiteFideId "1331132"]
[BlackFideId "4634071"]
[WhiteElo "2256"]
[BlackElo "2295"]
[Result "1-0"]
[Round "10"]
[TimeControl "180+1"]
[Date "2022.11.16"]
[WhiteClock "0:01:22"]
[BlackClock "0:00:05"]

1. d4 {[%clk 0:03:00]}  d5 {[%clk 0:02:55]} 2. c4 {[%clk 0:02:59]}  dxc4 {[%clk 0:02:55]} 3. e3 {[%clk 0:02:58]}  e5 {[%clk 0:02:54]} 4. Bxc4 {[%clk 0:02:56]}  exd4 {[%clk 0:02:55]} 5. exd4 {[%clk 0:02:56]}  Bd6 {[%clk 0:02:55]} 6. Nf3 {[%clk 0:02:54]}  Nf6 {[%clk 0:02:55]} 7. O-O {[%clk 0:02:50]}  O-O {[%clk 0:02:56]} 8. Bg5 {[%clk 0:02:49]}  h6 {[%clk 0:02:55]} 9. Bh4 {[%clk 0:02:49]}  g5 {[%clk 0:02:50]} 10. Bg3 {[%clk 0:02:49]}  Nc6 {[%clk 0:02:43]} 11. d5 {[%clk 0:02:32]}  Ne7 {[%clk 0:02:36]} 12. Nc3 {[%clk 0:02:30]}  a6 {[%clk 0:02:19]} 13. a4 {[%clk 0:02:28]}  Bf5 {[%clk 0:02:18]} 14. Nd4 {[%clk 0:02:24]}  Bg6 {[%clk 0:02:13]} 15. f4 {[%clk 0:02:23]}  gxf4 {[%clk 0:02:01]} 16. Bxf4 {[%clk 0:02:20]}  Bxf4 {[%clk 0:01:58]} 17. Rxf4 {[%clk 0:02:20]}  Nexd5 {[%clk 0:01:56]} 18. Rh4 {[%clk 0:02:11]}  Ne3 {[%clk 0:01:35]} 19. Qe2 {[%clk 0:01:51]}  Nxc4 {[%clk 0:01:01]} 20. Qxc4 {[%clk 0:01:50]}  Kg7 {[%clk 0:00:57]} 21. Rf1 {[%clk 0:01:44]}  c6 {[%clk 0:00:50]} 22. Nf5+ {[%clk 0:01:32]}  Bxf5 {[%clk 0:00:49]} 23. Rxf5 {[%clk 0:01:32]}  Re8 {[%clk 0:00:39]} 24. Qf4 {[%clk 0:01:23]}  Rh8 {[%clk 0:00:06]} 25. Rxf6 {[%clk 0:01:22]}  Qxf6 {[%clk 0:00:05]} 26. Rg4+ {[%clk 0:01:22]} 1-0


[Site "https://www.chess.com"]